[Event "45th FIDE Womens Olympiad 2024"]
[Site "Budapest"]
[Date "2024.09.11"]
[Round "1.66"]
[White "Peng, Zhaoqin"]
[Black "Raharimanana, Faratiana"]
[Result "1-0"]
[ECO "E51"]
[WhiteElo "2349"]
[BlackElo "1815"]
[Annotator "ChessBase"]
[PlyCount "93"]
[EventDate "2024.09.05"]
[EventType "team-tourn"]
[EventCountry "HUN"]
[SourceTitle "playchess.com"]
[Source "ChessBase"]
[SourceQuality "1"]
[WhiteTeam "Netherlands"]
[BlackTeam "Madagascar"]
[WhiteTeamCountry "NED"]
[BlackTeamCountry "MAD"]
[TimeControl "40/5400+30:1800+30"]

1. d4 d5 2. c4 e6 3. Nf3 Nf6 4. Nc3 Bb4 5. e3 c6 6. Bd3 Nbd7 7. O-O O-O 8. a3 Bxc3 9. bxc3 b6 10. cxd5 cxd5 11. a4 Qc7 12. Ba3 Re8 13. Rc1 e5 14. Be2 e4 15. Nd2 Bb7 16. c4 Qd8 17. Bd6 Rc8 18. Bg3 Qe7 19. Qb3 Ba6 20. Rc2 Rc6 21. Rfc1 Rec8 22. Bf1 dxc4 23. Bxc4 Bxc4 24. Rxc4 Rxc4 25. Rxc4 Rxc4 26. Qxc4 Nf8 27. h3 Qd7 28. Be5 Qd5 29. Bxf6 Qxc4 30. Nxc4 gxf6 31. Nd6 Nd7 32. Nxe4 Kf8 33. g4 Ke7 34. f3 Ke6 35. Nc3 a6 36. Kf2 Kd6 37. e4 Kc6 38. Ke3 b5 39. axb5+ axb5 40. Nd5 h6 41. h4 Kd6 42. Kd3 Kc6 43. Kc3 Kd6 44. Ne3 Nb8 45. Nf5+ Ke6 46. Nxh6 Na6 47. Nf5 1-0

[Event "45th FIDE Womens Olympiad 2024"]
[Site "Budapest"]
[Date "2024.09.11"]
[Round "1.67"]
[White "Randriatsiferana, Dimbiharentsoa Chris"]
[Black "Van Foreest, Machteld"]
[Result "0-1"]
[ECO "C56"]
[WhiteElo "1736"]
[BlackElo "2224"]
[Annotator "ChessBase"]
[PlyCount "54"]
[EventDate "2024.09.05"]
[EventType "team-tourn"]
[EventCountry "HUN"]
[SourceTitle "playchess.com"]
[Source "ChessBase"]
[SourceQuality "1"]
[WhiteTeam "Madagascar"]
[BlackTeam "Netherlands"]
[WhiteTeamCountry "MAD"]
[BlackTeamCountry "NED"]
[TimeControl "40/5400+30:1800+30"]

1. e4 e5 2. Nf3 Nc6 3. d4 exd4 4. Bc4 Nf6 5. e5 d5 6. Bb5 Ne4 7. Nxd4 Bd7 8. Bxc6 bxc6 9. O-O Bc5 10. Nc3 Nxc3 11. bxc3 O-O 12. Qh5 Qe7 13. Kh1 Rae8 14. f4 f6 15. Re1 fxe5 16. Nf3 e4 17. Ne5 Rf5 18. Qe2 Ref8 19. c4 Be8 20. cxd5 cxd5 21. g3 Bd4 22. Rb1 Bxe5 23. fxe5 Rf2 24. Qd1 Qe6 25. Be3 Qh3 26. Qxd5+ Kh8 27. Bxf2 Rxf2 0-1

[Event "45th FIDE Womens Olympiad 2024"]
[Site "Budapest"]
[Date "2024.09.11"]
[Round "1.68"]
[White "Bensdorp-De Labaca, Marlies"]
[Black "Tsinjoviniavo, Aina Mahasambatra"]
[Result "1-0"]
[ECO "D36"]
[WhiteElo "2241"]
[BlackElo "1662"]
[Annotator "ChessBase"]
[PlyCount "91"]
[EventDate "2024.09.05"]
[EventType "team-tourn"]
[EventCountry "HUN"]
[SourceTitle "playchess.com"]
[Source "ChessBase"]
[SourceQuality "1"]
[WhiteTeam "Netherlands"]
[BlackTeam "Madagascar"]
[WhiteTeamCountry "NED"]
[BlackTeamCountry "MAD"]
[TimeControl "40/5400+30:1800+30"]

1. d4 d5 2. c4 e6 3. Nc3 Nf6 4. cxd5 exd5 5. Bg5 c6 6. Qc2 Be7 7. e3 h6 8. Bh4 O-O 9. Bd3 Re8 10. Nge2 a5 11. O-O Nbd7 12. f3 Nf8 13. Rad1 Ne6 14. Kh1 b5 15. Bf2 Qc7 16. Bg1 b4 17. Na4 c5 18. dxc5 Nxc5 19. Rc1 Ba6 20. Nxc5 Bxc5 21. Bxa6 Qb6 22. Qxc5 Qxa6 23. Nd4 Rab8 24. Qc6 Rb6 25. Qa4 Re5 26. Rfd1 g5 27. Rc6 g4 28. Rxb6 Qxb6 29. Rc1 Kg7 30. Qc6 Qa7 31. e4 Qb8 32. Nf5+ Kg6 33. fxg4 Rxe4 34. h3 Qf4 35. Qc7 Qd2 36. Qc2 Qf4 37. Bh2 Qg5 38. Nd6 h5 39. gxh5+ Kxh5 40. Nxe4 Nxe4 41. Rf1 Qg6 42. Qd1+ Kh6 43. Qxd5 a4 44. Rxf7 Ng5 45. Bf4 Kh5 46. Rh7+ 1-0

[Event "45th FIDE Womens Olympiad 2024"]
[Site "Budapest"]
[Date "2024.09.11"]
[Round "1.69"]
[White "Munguntuul, Batkhuyag"]
[Black "Jop A., Laura Elizabeth"]
[Result "1-0"]
[ECO "B38"]
[WhiteElo "2346"]
[BlackElo "1686"]
[Annotator "ChessBase"]
[PlyCount "53"]
[EventDate "2024.09.05"]
[EventType "team-tourn"]
[EventCountry "HUN"]
[SourceTitle "playchess.com"]
[Source "ChessBase"]
[SourceQuality "1"]
[WhiteTeam "Mongolia"]
[BlackTeam "Guatemala"]
[WhiteTeamCountry "MGL"]
[BlackTeamCountry "GUA"]
[TimeControl "40/5400+30:1800+30"]

1. e4 c5 2. Nf3 g6 3. d4 cxd4 4. Nxd4 Bg7 5. c4 Nc6 6. Be3 d6 7. Nc3 Nh6 8. Be2 f5 9. Bxh6 Bxd4 10. exf5 Bxf5 11. O-O a6 12. Bf3 Be5 13. Qd2 Qd7 14. Nd5 Qd8 15. Rae1 Nd4 16. Bd1 Be6 17. f4 Bxd5 18. fxe5 dxe5 19. cxd5 Qxd5 20. Bb3 Qc5 21. Bf7+ Kd7 22. Bg7 Kc6 23. Kh1 Kb5 24. Rxe5 Qxe5 25. Bxe5 Rhd8 26. Bxd4 e5 27. Qd3+ 1-0

[Event "45th FIDE Womens Olympiad 2024"]
[Site "Budapest"]
[Date "2024.09.11"]
[Round "1.70"]
[White "Lopez L., Dairyn D."]
[Black "Nomin-Erdene, Davaademberel"]
[Result "0-1"]
[ECO "A80"]
[WhiteElo "1740"]
[BlackElo "2319"]
[Annotator "ChessBase"]
[PlyCount "60"]
[EventDate "2024.09.05"]
[EventType "team-tourn"]
[EventCountry "HUN"]
[SourceTitle "playchess.com"]
[Source "ChessBase"]
[SourceQuality "1"]
[WhiteTeam "Guatemala"]
[BlackTeam "Mongolia"]
[WhiteTeamCountry "GUA"]
[BlackTeamCountry "MGL"]
[TimeControl "40/5400+30:1800+30"]

1. Nf3 f5 2. b3 Nf6 3. Bb2 e6 4. e3 b6 5. d4 Bb7 6. Nbd2 Be7 7. Bd3 O-O 8. Qe2 Ne4 9. Rg1 d5 10. Ne5 Nd7 11. Bxe4 fxe4 12. Nxd7 Qxd7 13. O-O-O a5 14. f4 a4 15. g4 Qc6 16. f5 axb3 17. axb3 Ba6 18. Qg2 Bd3 19. Nb1 Ra2 20. Rd2 Rfa8 21. fxe6 Ba6 22. Rf2 Qxe6 23. Rf5 Qc6 24. Qf2 Bd3 25. g5 b5 26. Rf7 Bb4 27. Rf4 Ra1 28. h4 Bc3 29. Bxa1 Bxa1 30. Qd2 Ra2 0-1

[Event "45th FIDE Womens Olympiad 2024"]
[Site "Budapest"]
[Date "2024.09.11"]
[Round "1.71"]
[White "Khuslen, Erdenebayar"]
[Black "Raymundo, Deycy Daniela"]
[Result "1-0"]
[ECO "D35"]
[WhiteElo "2229"]
[BlackElo "1728"]
[Annotator "ChessBase"]
[PlyCount "101"]
[EventDate "2024.09.05"]
[EventType "team-tourn"]
[EventCountry "HUN"]
[SourceTitle "playchess.com"]
[Source "ChessBase"]
[SourceQuality "1"]
[WhiteTeam "Mongolia"]
[BlackTeam "Guatemala"]
[WhiteTeamCountry "MGL"]
[BlackTeamCountry "GUA"]
[TimeControl "40/5400+30:1800+30"]

1. d4 d5 2. c4 e6 3. Nc3 Nf6 4. cxd5 exd5 5. Bg5 Be7 6. e3 h6 7. Bh4 O-O 8. Bd3 Be6 9. Qc2 Nbd7 10. Nf3 Rc8 11. O-O c5 12. h3 Nh5 13. Bxe7 Qxe7 14. Qe2 c4 15. Bc2 Nhf6 16. Ne5 Nxe5 17. dxe5 Nd7 18. f4 f5 19. Rfd1 Qc5 20. Qf3 Nb6 21. Ne2 Rce8 22. Nd4 a6 23. Qh5 Nc8 24. Qg6 Qb6 25. g4 Bf7 26. Qxb6 Nxb6 27. Nxf5 Rd8 28. Nd6 Rb8 29. f5 Rfd8 30. e4 dxe4 31. Bxe4 Be8 32. Nxb7 Rxd1+ 33. Rxd1 Bb5 34. e6 Kf8 35. Kf2 Na4 36. Rd2 c3 37. bxc3 Nxc3 38. Bf3 Na4 39. h4 Nb6 40. g5 hxg5 41. hxg5 Nc4 42. Rc2 Ne5 43. Be4 Nd3+ 44. Ke3 Ne5 45. Rc7 Nc4+ 46. Kf4 Nd2 47. e7+ Kg8 48. Bd5+ Kh8 49. f6 gxf6 50. gxf6 Be8 51. f7 1-0

[Event "45th FIDE Womens Olympiad 2024"]
[Site "Budapest"]
[Date "2024.09.11"]
[Round "1.72"]
[White "Santiago Sontay, Jenny Fernanda"]
[Black "Mungunzul, Bat-Erdene"]
[Result "0-1"]
[ECO "D00"]
[WhiteElo "1773"]
[BlackElo "2224"]
[Annotator "ChessBase"]
[PlyCount "70"]
[EventDate "2024.09.05"]
[EventType "team-tourn"]
[EventCountry "HUN"]
[SourceTitle "playchess.com"]
[Source "ChessBase"]
[SourceQuality "1"]
[WhiteTeam "Guatemala"]
[BlackTeam "Mongolia"]
[WhiteTeamCountry "GUA"]
[BlackTeamCountry "MGL"]
[TimeControl "40/5400+30:1800+30"]

1. d4 d5 2. e3 Nf6 3. Bd3 c5 4. c3 e6 5. f4 Bd6 6. Nf3 O-O 7. Nbd2 b6 8. Qe2 Bb7 9. O-O Qe7 10. Ng5 Nbd7 11. Ndf3 h6 12. Nh3 Ne4 13. Ne5 Rfd8 14. Bd2 f6 15. Nxd7 Rxd7 16. Be1 Rf8 17. Nf2 f5 18. Bb5 Rc7 19. Nd3 Bc6 20. Bxc6 Rxc6 21. Ne5 Bxe5 22. fxe5 g5 23. Rc1 Rc7 24. Qh5 Qg7 25. Qe2 Qg6 26. c4 cxd4 27. exd4 Rfc8 28. b3 Qe8 29. Bb4 dxc4 30. bxc4 Qa4 31. a3 a5 32. Bd6 Rxc4 33. Rxc4 Qxc4 34. Qh5 Qxd4+ 35. Kh1 Nf2+ 0-1

[Event "45th FIDE Womens Olympiad 2024"]
[Site "Budapest"]
[Date "2024.09.11"]
[Round "1.73"]
[White "Chuemsakul, Sarocha"]
[Black "Gajcin, Marina"]
[Result "1/2-1/2"]
[ECO "E11"]
[WhiteElo "1906"]
[BlackElo "2253"]
[Annotator "TA"]
[PlyCount "215"]
[EventDate "2024.09.05"]
[EventType "team-tourn"]
[EventCountry "HUN"]
[SourceTitle "playchess.com"]
[Source "ChessBase"]
[SourceQuality "1"]
[WhiteTeam "Thailand"]
[BlackTeam "Serbia"]
[WhiteTeamCountry "THA"]
[BlackTeamCountry "SRB"]
[TimeControl "40/5400+30:1800+30"]

{[%evp 51,214,115,128,102,143,131,113,108,129,144,159,164,164,171,243,135,146,93,99,95,94,97,97,97,102,93,100,100,97,88,94,92,94,94,91,83,117,70,70,70,70,70,74,39,39,39,39,39,39,39,62,66,154,21,39,39,39,36,36,36,43,36,36,8,8,8,8,8,8,8,8,8,8,8,8,0,8,8,8,8,25,8,8,8,8,8,8,8,8,8,8,8,8,8,8,8,8,0,8,8,8,8,8,8,8,8,8,8,8,8,8,8,8,0,8,8,8,8,8,8,8,8,8,8,8,0,8,8,8,8,8,8,8,8,8,8,8,68,75,8,75,8,8,8,8,8,8,8,8,0,0,0,0,0,0,0,0,0,0,0,0,0,0,0,0]} 1. d4 Nf6 2. c4 e6 3. Nf3 Bb4+ 4. Bd2 a5 5. a3 Bxd2+ 6. Nbxd2 Nc6 {E11: Bogo-Indian.} 7. e4 d6 8. Bd3 e5 9. d5 Ne7 10. c5 $146 ({Predecessor:} 10. Nf1 a4 11. Ne3 Nd7 12. O-O Ng6 13. Nf5 O-O 14. g3 Nc5 15. Bc2 Qf6 16. Kg2 Nxe4 17. Nh6+ gxh6 18. Bxe4 Bf5 19. Qd3 Qg7 20. Kh1 Bh3 {0-1 Jacobsen,H (1873)-Nielsen,H (2396) FAI-ch Runavik 2020 (1)}) 10... O-O 11. cxd6 cxd6 12. h3 Ng6 13. O-O Nf4 14. Bb5 N6h5 15. Kh2 Bd7 16. Qa4 Nf6 17. Bxd7 Nxd7 18. g3 Ng6 19. Qb5 f5 20. Kg2 Nc5 21. exf5 Rxf5 22. b4 Qd7 23. Qxd7 Nxd7 24. Ne4 Ne7 25. Nxd6 e4 26. Nxe4 (26. Nd2 $18 Rxd5 27. N2xe4 (27. N6xe4 axb4 28. axb4 Rxa1 $16)) 26... Rxd5 $16 27. Rfd1 Nb6 28. Nc5 axb4 29. axb4 Rxa1 30. Rxa1 Nc6 31. Nxb7 Rb5 32. Re1 Nc4 (32... h6 {was worth a try.} 33. Nd6 Rxb4) 33. Nc5 ({White should play} 33. Re8+ $18 Kf7 34. Rc8) 33... Nxb4 {[#]} 34. Ne4 (34. Re8+ $142 $1 Kf7 35. Rc8) 34... h6 35. Nc3 Rb8 36. Re7 Nd6 37. Nd4 Rc8 38. Nce2 Nc6 39. Nxc6 Rxc6 40. Nd4 Rc8 41. Rd7 Ne8 42. Ne6 g5 43. g4 Rc6 44. Re7 ({White should try} 44. Nd4 $16 Rd6 45. Rxd6 Nxd6 46. Nf5) 44... Nf6 $14 45. Nd4 Ra6 46. Nf5 Nd5 47. Rg7+ Kh8 48. Rd7 Nf4+ 49. Kh2 Ra3 50. Ne3 (50. Nxh6 $2 {loses.} Rxh3+ (50... Nxh3 51. Rf7 $11) 51. Kg1 Rxh6 $19) 50... Ra2 51. Kg3 $1 Ng6 {[#]} (51... Ne2+ $14 52. Kf3 Nf4) 52. Nd5 ({Better is} 52. Rd6 $1 $16 {[%cal Rd6g6]} Kh7 53. Nf5) 52... Ra6 53. Rf7 Kg8 54. Rf6 Rxf6 55. Nxf6+ Kf7 56. Nh5 Ne5 57. f4 gxf4+ $1 58. Kxf4 Nd3+ 59. Kg3 Ne5 60. Nf4 Kg7 61. h4 Kf6 62. Nd5+ Ke6 63. Nf4+ Kf6 64. Ne2 Kg7 65. Nd4 Kf6 66. h5 Nf7 67. Kf4 Ne5 68. Nf5 Nf7 69. Ng3 Kg7 70. Ne4 Nd8 71. Ke5 Nc6+ 72. Kd6 Nd4 73. Ke7 Nc6+ 74. Kd6 Nd4 75. Kd5 Nf3 76. Nd6 Nh2 77. Nf5+ Kh7 78. Ne3 Nf3 $1 79. Ke6 Ng5+ 80. Ke7 Ne4 81. Nd5 Kg7 82. Ne3 Nf2 83. Ke6 Ne4 84. Nf5+ Kh7 85. Kf7 Nf2 86. Ne3 Ne4 87. Nd5 Ng5+ 88. Kf8 Ne6+ 89. Ke7 Ng5 90. Nf4 Ne4 91. Ng6 Kg7 92. Ke6 Nf2 93. Kf5 Nd1 94. Ne5 Nc3 95. Nf3 (95. Ke6 $16) 95... Nd5 (95... Kf7 $1 $11 {keeps the balance.}) 96. g5 (96. Nd4 $16) 96... Ne7+ 97. Kg4 hxg5 98. Kxg5 Ng8 99. Nd4 Nh6 100. Nf5+ Nxf5 101. Kxf5 Kh6 102. Kg4 Kh7 103. Kg5 Kg7 104. h6+ Kh7 105. Kh5 Kh8 106. Kg6 Kg8 107. h7+ Kh8 108. Kh6 1/2-1/2

[Event "45th FIDE Womens Olympiad 2024"]
[Site "Budapest"]
[Date "2024.09.11"]
[Round "1.74"]
[White "Velikic, Adela"]
[Black "Prommuang, Araya"]
[Result "1-0"]
[ECO "B33"]
[WhiteElo "2260"]
[BlackElo "1753"]
[Annotator "ChessBase"]
[PlyCount "93"]
[EventDate "2024.09.05"]
[EventType "team-tourn"]
[EventCountry "HUN"]
[SourceTitle "playchess.com"]
[Source "ChessBase"]
[SourceQuality "1"]
[WhiteTeam "Serbia"]
[BlackTeam "Thailand"]
[WhiteTeamCountry "SRB"]
[BlackTeamCountry "THA"]
[TimeControl "40/5400+30:1800+30"]

1. e4 c5 2. Nf3 e6 3. d4 cxd4 4. Nxd4 Nf6 5. Nc3 Nc6 6. Ndb5 d6 7. Bf4 e5 8. Bg5 a6 9. Na3 b5 10. Nd5 Be7 11. Bxf6 Bxf6 12. c3 Ne7 13. Nxe7 Qxe7 14. c4 b4 15. Nc2 a5 16. Be2 Bb7 17. Qd3 O-O 18. O-O Bc6 19. Rfd1 Qb7 20. Bf3 Be7 21. Re1 g6 22. Rad1 Rac8 23. Ne3 f5 24. Nc2 Kh8 25. b3 Rfd8 26. exf5 Bxf3 27. Qxf3 Qxf3 28. gxf3 gxf5 29. Rd5 Ra8 30. Kf1 f4 31. Nd4 Rd7 32. Nc6 Bf6 33. Nxe5 Bxe5 34. Rexe5 dxe5 35. Rxd7 Rc8 36. Rd5 a4 37. Rxe5 axb3 38. axb3 Rd8 39. Ke2 Ra8 40. Rb5 Ra2+ 41. Kf1 Rc2 42. Rxb4 Kg7 43. Rb5 Kf6 44. Kg2 Ke6 45. h4 Rb2 46. h5 Rc2 47. Kh3 1-0

[Event "45th FIDE Womens Olympiad 2024"]
[Site "Budapest"]
[Date "2024.09.11"]
[Round "1.75"]
[White "Mekarapiruk, Nathasha"]
[Black "Mandura, Tijana"]
[Result "0-1"]
[ECO "C45"]
[WhiteElo "1728"]
[BlackElo "2207"]
[Annotator "ChessBase"]
[PlyCount "94"]
[EventDate "2024.09.05"]
[EventType "team-tourn"]
[EventCountry "HUN"]
[SourceTitle "playchess.com"]
[Source "ChessBase"]
[SourceQuality "1"]
[WhiteTeam "Thailand"]
[BlackTeam "Serbia"]
[WhiteTeamCountry "THA"]
[BlackTeamCountry "SRB"]
[TimeControl "40/5400+30:1800+30"]

1. e4 e5 2. Nf3 Nc6 3. d4 exd4 4. Nxd4 Bc5 5. Nb3 Bb6 6. Nc3 d6 7. Qe2 a5 8. Be3 a4 9. Bxb6 axb3 10. Be3 bxa2 11. Rxa2 Rxa2 12. Nxa2 Nge7 13. Qh5 Be6 14. Nc1 d5 15. e5 d4 16. Bd2 Qd5 17. Nd3 O-O 18. Be2 Qxg2 19. Bf3 Qh3 20. Qxh3 Bxh3 21. Bxc6 Nxc6 22. f4 Ra8 23. Ke2 Bg4+ 24. Kf2 Ra2 25. Rb1 Bf5 26. Ke2 f6 27. exf6 gxf6 28. Rg1+ Kf7 29. c3 Ra8 30. Nc5 Ra5 31. b4 Ra2 32. cxd4 Nxd4+ 33. Ke3 Rxd2 34. Kxd2 Nf3+ 35. Ke3 Nxg1 36. Nxb7 Ke7 37. Kf2 Nh3+ 38. Kg3 Kd7 39. b5 h5 40. Nc5+ Kd6 41. Na6 Bc8 42. Nb8 Kc5 43. Nc6 Bg4 44. Na7 Kb6 45. Nc6 Kxb5 46. Nd4+ Kc5 47. Nc2 f5 0-1

[Event "45th FIDE Womens Olympiad 2024"]
[Site "Budapest"]
[Date "2024.09.11"]
[Round "1.76"]
[White "Eric, Jovana"]
[Black "Khantree, Napat"]
[Result "1-0"]
[ECO "C50"]
[WhiteElo "2162"]
[BlackElo "1711"]
[Annotator "NA"]
[PlyCount "52"]
[EventDate "2024.09.05"]
[EventType "team-tourn"]
[EventCountry "HUN"]
[SourceTitle "playchess.com"]
[Source "ChessBase"]
[SourceQuality "1"]
[WhiteTeam "Serbia"]
[BlackTeam "Thailand"]
[WhiteTeamCountry "SRB"]
[BlackTeamCountry "THA"]
[TimeControl "40/5400+30:1800+30"]

1. e4 e5 2. Nf3 Nc6 3. Bc4 Bc5 4. d3 Nf6 5. Nc3 d6 6. Bg5 h6 7. Bxf6 Qxf6 8. Nd5 Qd8 9. c3 a6 10. a4 a5 11. O-O Bd7 12. d4 exd4 13. cxd4 Ba7 14. h3 O-O 15. Re1 Be6 16. Rc1 Rc8 17. Qd2 Kh8 18. b3 f5 19. Nf4 Bf7 20. exf5 Qf6 21. Be6 Rb8 22. Nd5 Qd8 23. f6 Bxe6 24. fxg7+ Kxg7 25. Rxe6 Rh8 26. Qd3 Rh7 1-0

[Event "45th FIDE Womens Olympiad 2024"]
[Site "Budapest"]
[Date "2024.09.11"]
[Round "1.78"]
[White "Mefteh, Meyssem"]
[Black "Luong Phuong Hanh"]
[Result "0-1"]
[ECO "D91"]
[WhiteElo "1834"]
[BlackElo "2225"]
[Annotator "ChessBase"]
[PlyCount "200"]
[EventDate "2024.09.05"]
[EventType "team-tourn"]
[EventCountry "HUN"]
[SourceTitle "playchess.com"]
[Source "ChessBase"]
[SourceQuality "1"]
[WhiteTeam "Tunisia"]
[BlackTeam "Vietnam"]
[WhiteTeamCountry "TUN"]
[BlackTeamCountry "VIE"]
[TimeControl "40/5400+30:1800+30"]

1. d4 Nf6 2. c4 g6 3. Nc3 d5 4. Bg5 Ne4 5. Bh4 Nxc3 6. bxc3 dxc4 7. e3 Be6 8. Nf3 Bg7 9. Qb1 Qd5 10. Be2 O-O 11. Bxe7 Bf5 12. Qb2 Re8 13. Bh4 Nd7 14. O-O Nb6 15. a4 Qa5 16. Qa2 Bd3 17. Bxd3 cxd3 18. Rfd1 c5 19. Rxd3 c4 20. Rdd1 Rac8 21. Rdc1 Nd5 22. Qb2 Qc7 23. Qb5 Nf6 24. Bxf6 Bxf6 25. Rab1 b6 26. Nd2 Bg7 27. Rb4 Qe7 28. Rxc4 Rcd8 29. Rc6 Bh6 30. Re1 Bf8 31. Qc4 Rd7 32. Nf3 Bg7 33. Rc8 Rxc8 34. Qxc8+ Rd8 35. Qc4 Qd7 36. Qb5 Qe7 37. Qg5 Bf6 38. Qb5 Qe4 39. Qa6 Qe7 40. Qc4 Qd7 41. Rb1 Rc8 42. Qb3 Qf5 43. Rd1 g5 44. h3 h5 45. Rc1 g4 46. hxg4 hxg4 47. Nh2 g3 48. fxg3 Bg5 49. c4 Qe4 50. Nf1 Rc6 51. Re1 Rh6 52. Qb1 Qg4 53. Qd1 Qe4 54. Qf3 Qh7 55. e4 Rh1+ 56. Kf2 Qg7 57. e5 Be7 58. Re4 Kh8 59. Rg4 Qf8 60. e6 f5 61. Rf4 Qf6 62. Qe3 Bd6 63. e7 Bxe7 64. Qe5 Qxe5 65. dxe5 Bc5+ 66. Ke2 Rg1 67. Rxf5 Rxg2+ 68. Kd1 Ra2 69. e6 Kg8 70. g4 Rxa4 71. g5 Rxc4 72. Nd2 Rd4 73. Kc2 Be7 74. g6 Rd6 75. Re5 Kg7 76. Nc4 Rc6 77. Kb3 Kxg6 78. Re1 Kf5 79. Na3 Bxa3 80. e7 Bxe7 81. Rxe7 a6 82. Kb4 Rc5 83. Re3 Re5 84. Rd3 Re4+ 85. Ka3 Ke5 86. Rd2 Rd4 87. Rc2 Kd5 88. Kb3 a5 89. Rc1 b5 90. Rc2 Rd3+ 91. Kb2 a4 92. Rc7 Rh3 93. Rg7 Kc5 94. Rg5+ Kb4 95. Rg4+ Ka5 96. Rg5 a3+ 97. Ka2 Ka4 98. Rg4+ b4 99. Rg2 b3+ 100. Ka1 Rh1+ 0-1

[Event "45th FIDE Womens Olympiad 2024"]
[Site "Budapest"]
[Date "2024.09.11"]
[Round "1.79"]
[White "Bach Ngoc Thuy Duong"]
[Black "Ben Amor, Meriem"]
[Result "1-0"]
[ECO "E36"]
[WhiteElo "2214"]
[BlackElo "1733"]
[Annotator "NA"]
[PlyCount "43"]
[EventDate "2024.09.05"]
[EventType "team-tourn"]
[EventCountry "HUN"]
[SourceTitle "playchess.com"]
[Source "ChessBase"]
[SourceQuality "1"]
[WhiteTeam "Vietnam"]
[BlackTeam "Tunisia"]
[WhiteTeamCountry "VIE"]
[BlackTeamCountry "TUN"]
[TimeControl "40/5400+30:1800+30"]

1. d4 Nf6 2. c4 e6 3. Nc3 Bb4 4. Qc2 O-O 5. a3 Bxc3+ 6. Qxc3 d5 7. Bg5 dxc4 8. Qxc4 b6 9. Rd1 Ba6 10. Qa4 Qd5 11. Bxf6 gxf6 12. e3 Bxf1 13. Kxf1 Rc8 14. Ne2 a5 15. Nc3 Qb7 16. d5 Kh8 17. Qh4 Rg8 18. Qxf6+ Rg7 19. dxe6 Qxg2+ 20. Ke2 Qg4+ 21. Ke1 Na6 22. e7 1-0

[Event "45th FIDE Womens Olympiad 2024"]
[Site "Budapest"]
[Date "2024.09.11"]
[Round "1.80"]
[White "Gamha, Yasmine"]
[Black "Le Thanh Tu"]
[Result "0-1"]
[ECO "C11"]
[WhiteElo "1679"]
[BlackElo "2092"]
[Annotator "NA"]
[PlyCount "62"]
[EventDate "2024.09.05"]
[EventType "team-tourn"]
[EventCountry "HUN"]
[SourceTitle "playchess.com"]
[Source "ChessBase"]
[SourceQuality "1"]
[WhiteTeam "Tunisia"]
[BlackTeam "Vietnam"]
[WhiteTeamCountry "TUN"]
[BlackTeamCountry "VIE"]
[TimeControl "40/5400+30:1800+30"]

1. e4 e6 2. d4 d5 3. Nc3 Nf6 4. e5 Nfd7 5. f4 c5 6. Nf3 Nc6 7. Be3 cxd4 8. Nxd4 Bc5 9. Qd2 a6 10. g3 O-O 11. Be2 Qe7 12. O-O-O Bxd4 13. Bxd4 b5 14. Rhe1 b4 15. Na4 Nxd4 16. Qxd4 Bb7 17. Bd3 Rfc8 18. f5 Qg5+ 19. Kb1 a5 20. h4 Qh6 21. g4 Ba6 22. g5 Qh5 23. fxe6 fxe6 24. Bf5 Qe8 25. Bh3 Rc6 26. Bf1 Bxf1 27. Rxf1 Rac8 28. Rd2 Qg6 29. Rc1 Qf5 30. Qa7 Nxe5 31. Qe3 Nc4 0-1

[Event "45th FIDE Womens Olympiad 2024"]
[Site "Budapest"]
[Date "2024.09.11"]
[Round "1.81"]
[White "Wilson, Hannah"]
[Black "Georgescu, Lena"]
[Result "0-1"]
[ECO "E39"]
[WhiteElo "1888"]
[BlackElo "2266"]
[Annotator "ChessBase"]
[PlyCount "72"]
[EventDate "2024.09.05"]
[EventType "team-tourn"]
[EventCountry "HUN"]
[SourceTitle "playchess.com"]
[Source "ChessBase"]
[SourceQuality "1"]
[WhiteTeam "Barbados"]
[BlackTeam "Switzerland"]
[WhiteTeamCountry "BAR"]
[BlackTeamCountry "SUI"]
[TimeControl "40/5400+30:1800+30"]

1. d4 Nf6 2. c4 e6 3. Nc3 Bb4 4. Qc2 O-O 5. Bg5 c5 6. dxc5 Bxc5 7. e3 h6 8. Bh4 b6 9. Nf3 Bb7 10. Be2 Be7 11. O-O Na6 12. Rfd1 Nc5 13. Ne5 d6 14. Nb5 a6 15. Nc3 Qc7 16. Nd3 Rfd8 17. b4 Ncd7 18. Bg3 Rac8 19. Rac1 Qb8 20. Qb3 Qa8 21. f3 d5 22. Nf4 g5 23. Nh3 Bf8 24. cxd5 exd5 25. Rf1 Re8 26. Na4 b5 27. Nb2 Bg7 28. Rcd1 Nb6 29. Nf2 Nh5 30. Bd6 Rc3 31. Qxc3 Bxc3 32. f4 Nf6 33. fxg5 hxg5 34. Nfd3 Nc4 35. Bc5 Nxb2 36. Nxb2 Bxb2 0-1

[Event "45th FIDE Womens Olympiad 2024"]
[Site "Budapest"]
[Date "2024.09.11"]
[Round "1.82"]
[White "Hakimifard, Ghazal"]
[Black "Blackman, Katrina"]
[Result "1-0"]
[ECO "C06"]
[WhiteElo "2192"]
[BlackElo "1814"]
[Annotator "ChessBase"]
[PlyCount "73"]
[EventDate "2024.09.05"]
[EventType "team-tourn"]
[EventCountry "HUN"]
[SourceTitle "playchess.com"]
[Source "ChessBase"]
[SourceQuality "1"]
[WhiteTeam "Switzerland"]
[BlackTeam "Barbados"]
[WhiteTeamCountry "SUI"]
[BlackTeamCountry "BAR"]
[TimeControl "40/5400+30:1800+30"]

1. e4 e6 2. d4 d5 3. Nd2 Nf6 4. e5 Nfd7 5. c3 c5 6. Bd3 Nc6 7. Ngf3 cxd4 8. cxd4 f6 9. exf6 Nxf6 10. O-O Bd6 11. Re1 O-O 12. Nf1 Qc7 13. Bd2 Bd7 14. Bc3 Rac8 15. a3 a5 16. Rc1 h6 17. Ne5 b6 18. Ng3 Nd8 19. Bb1 Be8 20. Qd3 Qe7 21. Bd2 Rxc1 22. Rxc1 g5 23. Re1 Bxe5 24. Rxe5 Qg7 25. b4 a4 26. b5 Ng4 27. Re2 Qf7 28. f3 Nf6 29. Bb4 Nb7 30. Bc2 Na5 31. Bxa4 Nc4 32. Bxf8 Kxf8 33. Ne4 Nh5 34. g3 Qc7 35. Nf2 Nb2 36. Rxb2 Qc1+ 37. Nd1 1-0

[Event "45th FIDE Womens Olympiad 2024"]
[Site "Budapest"]
[Date "2024.09.11"]
[Round "1.83"]
[White "Reifer-Belle, Chanon"]
[Black "Hryzlova, Sofiia"]
[Result "1/2-1/2"]
[ECO "B14"]
[WhiteElo "1736"]
[BlackElo "2188"]
[Annotator "ChessBase"]
[PlyCount "90"]
[EventDate "2024.09.05"]
[EventType "team-tourn"]
[EventCountry "HUN"]
[SourceTitle "playchess.com"]
[Source "ChessBase"]
[SourceQuality "1"]
[WhiteTeam "Barbados"]
[BlackTeam "Switzerland"]
[WhiteTeamCountry "BAR"]
[BlackTeamCountry "SUI"]
[TimeControl "40/5400+30:1800+30"]

1. e4 c5 2. c3 d5 3. exd5 Nf6 4. d4 Nxd5 5. Nf3 e6 6. Be2 Be7 7. O-O cxd4 8. cxd4 O-O 9. Nc3 Nc6 10. Be3 b6 11. Rc1 Bb7 12. a3 Rc8 13. Nxd5 Qxd5 14. Bc4 Qd6 15. b4 Bf6 16. Qd2 Rfd8 17. Rfd1 Qb8 18. Qe2 Ne7 19. Ng5 Bd5 20. Bd3 h6 21. Rxc8 Qxc8 22. Ne4 Bxe4 23. Bxe4 Nd5 24. Rc1 Qd7 25. Qf3 Qe7 26. Qg3 Bh4 27. Qe5 Qf6 28. Qxf6 Bxf6 29. Kf1 Kf8 30. Ke2 Ke7 31. b5 g5 32. Rc4 Bg7 33. Bd2 Rd7 34. Bxd5 exd5 35. Bb4+ Kd8 36. Rc6 Bxd4 37. Rxh6 Be5 38. h4 gxh4 39. Rxh4 Rc7 40. Rh5 f6 41. Rh8+ Kd7 42. Rh7+ Ke6 43. Rxc7 Bxc7 44. Kd3 f5 45. g3 Ke5 1/2-1/2